[Event "Titled Tuesday Blitz October 31 Early 2023"]
[White "hsd2016"]
[Black "Shishkov, Andrei"]
[BlackFideId "4500563"]
[WhiteElo "2262"]
[BlackElo "2434"]
[Result "0-1"]
[Round "7"]
[TimeControl "180+1"]
[Date "2023.10.31"]
[WhiteClock "0:00:00"]
[BlackClock "0:00:14"]
[Board "119"]

1. Nf3 {[%clk 0:03:00]}  Nf6 {[%clk 0:02:59]} 2. g3 {[%clk 0:03:00]}  b5 {[%clk 0:02:59]} 3. Bg2 {[%clk 0:03:01]}  Bb7 {[%clk 0:03:00]} 4. b3 {[%clk 0:03:00]}  e6 {[%clk 0:03:00]} 5. Bb2 {[%clk 0:03:01]}  Be7 {[%clk 0:03:00]} 6. d3 {[%clk 0:03:00]}  O-O {[%clk 0:03:01]} 7. Nbd2 {[%clk 0:03:01]}  c5 {[%clk 0:02:50]} 8. e4 {[%clk 0:03:00]}  d6 {[%clk 0:02:43]} 9. O-O {[%clk 0:02:59]}  a5 {[%clk 0:02:28]} 10. a4 {[%clk 0:02:52]}  b4 {[%clk 0:02:28]} 11. Re1 {[%clk 0:02:51]}  Nfd7 {[%clk 0:02:24]} 12. Nc4 {[%clk 0:02:48]}  Nc6 {[%clk 0:02:21]} 13. Qd2 {[%clk 0:02:43]}  d5 {[%clk 0:02:14]} 14. exd5 {[%clk 0:02:40]}  exd5 {[%clk 0:02:14]} 15. Nce5 {[%clk 0:02:40]}  d4 {[%clk 0:02:09]} 16. Nc4 {[%clk 0:02:36]}  Ra7 {[%clk 0:01:55]} 17. Re2 {[%clk 0:02:19]}  Nf6 {[%clk 0:01:38]} 18. Rae1 {[%clk 0:02:13]}  Nd5 {[%clk 0:01:35]} 19. h4 {[%clk 0:01:23]}  Bf6 {[%clk 0:01:27]} 20. Nh2 {[%clk 0:01:05]}  Nc3 {[%clk 0:01:23]} 21. Bxc3 {[%clk 0:01:05]}  dxc3 {[%clk 0:01:21]} 22. Qf4 {[%clk 0:01:00]}  Nd4 {[%clk 0:01:16]} 23. Bxb7 {[%clk 0:00:38]}  Nxe2+ {[%clk 0:01:11]} 24. Rxe2 {[%clk 0:00:39]}  Rxb7 {[%clk 0:01:11]} 25. Ng4 {[%clk 0:00:39]}  Bd4 {[%clk 0:01:03]} 26. Nd6 {[%clk 0:00:37]}  Re7 {[%clk 0:00:59]} 27. Rxe7 {[%clk 0:00:18]}  Qxe7 {[%clk 0:00:59]} 28. Nf5 {[%clk 0:00:19]}  Qe1+ {[%clk 0:00:31]} 29. Kg2 {[%clk 0:00:16]}  h5 {[%clk 0:00:32]} 30. Nxd4 {[%clk 0:00:03]}  cxd4 {[%clk 0:00:19]} 31. Ne5 {[%clk 0:00:03]}  Qe2 {[%clk 0:00:16]} 32. Qxd4 {[%clk 0:00:02]}  Qxc2 {[%clk 0:00:15]} 33. Nd7 {[%clk 0:00:00]}  Re8 {[%clk 0:00:14]} 0-1


[Site "https://www.chess.com"]

[Event "Titled Tuesday Blitz October 31 Early 2023"]
[White "parintele_chess"]
[Black "PoXerStar"]
[WhiteElo "2252"]
[BlackElo "2433"]
[Result "0-1"]
[Round "7"]
[TimeControl "180+1"]
[Date "2023.10.31"]
[WhiteClock "0:00:00"]
[BlackClock "0:00:19"]
[Board "120"]

1. d4 {[%clk 0:03:00]}  Nf6 {[%clk 0:02:55]} 2. c4 {[%clk 0:03:01]}  c5 {[%clk 0:02:54]} 3. d5 {[%clk 0:03:01]}  b5 {[%clk 0:02:54]} 4. cxb5 {[%clk 0:03:02]}  a6 {[%clk 0:02:54]} 5. bxa6 {[%clk 0:03:03]}  g6 {[%clk 0:02:54]} 6. Nc3 {[%clk 0:03:02]}  Bg7 {[%clk 0:02:54]} 7. e4 {[%clk 0:03:03]}  d6 {[%clk 0:02:54]} 8. Nf3 {[%clk 0:03:03]}  O-O {[%clk 0:02:52]} 9. Be2 {[%clk 0:03:02]}  Qa5 {[%clk 0:02:53]} 10. O-O {[%clk 0:03:01]}  Nxa6 {[%clk 0:02:50]} 11. Bd2 {[%clk 0:02:58]}  Rb8 {[%clk 0:02:45]} 12. b3 {[%clk 0:02:36]}  Qb4 {[%clk 0:01:57]} 13. Qc2 {[%clk 0:02:24]}  Bd7 {[%clk 0:01:46]} 14. Bxa6 {[%clk 0:02:15]}  Qb6 {[%clk 0:01:37]} 15. Bd3 {[%clk 0:02:13]}  Bg4 {[%clk 0:01:36]} 16. Ne1 {[%clk 0:01:54]}  Nd7 {[%clk 0:01:34]} 17. f3 {[%clk 0:01:45]}  c4+ {[%clk 0:01:32]} 18. Kh1 {[%clk 0:01:38]}  cxd3 {[%clk 0:01:32]} 19. Nxd3 {[%clk 0:01:35]}  Rfc8 {[%clk 0:01:26]} 20. fxg4 {[%clk 0:01:26]}  Nf6 {[%clk 0:01:26]} 21. Nf2 {[%clk 0:01:16]}  h5 {[%clk 0:01:04]} 22. Qd3 {[%clk 0:01:04]}  hxg4 {[%clk 0:01:04]} 23. Be3 {[%clk 0:01:01]}  Qa5 {[%clk 0:01:03]} 24. Bd4 {[%clk 0:00:59]}  g3 {[%clk 0:01:01]} 25. hxg3 {[%clk 0:00:56]}  Nd7 {[%clk 0:00:54]} 26. Bxg7 {[%clk 0:00:55]}  Kxg7 {[%clk 0:00:55]} 27. Qd4+ {[%clk 0:00:53]}  Ne5 {[%clk 0:00:55]} 28. Ne2 {[%clk 0:00:47]}  Rc2 {[%clk 0:00:48]} 29. Nd3 {[%clk 0:00:42]}  Rh8+ {[%clk 0:00:30]} 30. Kg1 {[%clk 0:00:40]}  Rxe2 {[%clk 0:00:31]} 31. Nxe5 {[%clk 0:00:40]}  dxe5 {[%clk 0:00:31]} 32. Qxe5+ {[%clk 0:00:41]}  Kg8 {[%clk 0:00:32]} 33. Qxe7 {[%clk 0:00:00]}  Qb6+ {[%clk 0:00:19]} 0-1


[Site "https://www.chess.com"]

[Event "Titled Tuesday Blitz October 31 Early 2023"]
[White "Akylbek2021"]
[Black "Kostiukov, Alexandr"]
[BlackFideId "14108100"]
[WhiteElo "2250"]
[BlackElo "2415"]
[Result "0-1"]
[Round "7"]
[TimeControl "180+1"]
[Date "2023.10.31"]
[WhiteClock "0:00:01"]
[BlackClock "0:00:26"]
[Board "122"]

1. d4 {[%clk 0:02:59]}  g6 {[%clk 0:02:54]} 2. e4 {[%clk 0:02:59]}  Bg7 {[%clk 0:02:51]} 3. Nc3 {[%clk 0:02:55]}  d6 {[%clk 0:02:50]} 4. Bc4 {[%clk 0:02:55]}  a6 {[%clk 0:02:47]} 5. a4 {[%clk 0:02:55]}  Nd7 {[%clk 0:02:39]} 6. Be3 {[%clk 0:02:43]}  e5 {[%clk 0:02:34]} 7. Nge2 {[%clk 0:02:34]}  exd4 {[%clk 0:02:30]} 8. Bxd4 {[%clk 0:02:33]}  Ngf6 {[%clk 0:02:26]} 9. O-O {[%clk 0:02:30]}  O-O {[%clk 0:02:25]} 10. f4 {[%clk 0:02:20]}  Qe7 {[%clk 0:02:04]} 11. Ng3 {[%clk 0:02:16]}  Nc5 {[%clk 0:01:54]} 12. e5 {[%clk 0:01:58]}  Ng4 {[%clk 0:01:28]} 13. Nd5 {[%clk 0:01:45]}  Qh4 {[%clk 0:01:26]} 14. h3 {[%clk 0:01:16]}  Qxg3 {[%clk 0:01:20]} 15. hxg4 {[%clk 0:00:57]}  Bxg4 {[%clk 0:01:20]} 16. Qe1 {[%clk 0:00:54]}  Qxe1 {[%clk 0:01:16]} 17. Raxe1 {[%clk 0:00:54]}  c6 {[%clk 0:01:12]} 18. Ne7+ {[%clk 0:00:11]}  Kh8 {[%clk 0:01:11]} 19. Bxc5 {[%clk 0:00:11]}  dxc5 {[%clk 0:01:09]} 20. f5 {[%clk 0:00:12]}  Rae8 {[%clk 0:00:43]} 21. f6 {[%clk 0:00:04]}  Bh6 {[%clk 0:00:43]} 22. e6 {[%clk 0:00:02]}  fxe6 {[%clk 0:00:33]} 23. Bxe6 {[%clk 0:00:03]}  Bxe6 {[%clk 0:00:32]} 24. Rxe6 {[%clk 0:00:04]}  Bg5 {[%clk 0:00:30]} 25. Rfe1 {[%clk 0:00:04]}  Rd8 {[%clk 0:00:28]} 26. f7 {[%clk 0:00:02]}  Kg7 {[%clk 0:00:27]} 27. g3 {[%clk 0:00:01]}  Rd7 {[%clk 0:00:26]} 28. c3 {[%clk 0:00:01]}  Rxf7 {[%clk 0:00:26]} 29. b4 {[%clk 0:00:01]}  Rdxe7 {[%clk 0:00:26]} 30. Rxe7 {[%clk 0:00:01]}  Rxe7 {[%clk 0:00:26]} 31. Rxe7+ {[%clk 0:00:01]}  Bxe7 {[%clk 0:00:26]} 0-1


[Site "https://www.chess.com"]

[Event "Titled Tuesday Blitz October 31 Early 2023"]
[White "Jimenez Fernandez, Rebeca"]
[Black "crazy_m_attack"]
[WhiteFideId "32070934"]
[WhiteElo "2234"]
[BlackElo "2414"]
[Result "0-1"]
[Round "7"]
[TimeControl "180+1"]
[Date "2023.10.31"]
[WhiteClock "0:00:03"]
[BlackClock "0:00:15"]
[Board "123"]

1. e4 {[%clk 0:01:43]}  e5 {[%clk 0:02:57]} 2. d4 {[%clk 0:01:43]}  exd4 {[%clk 0:02:57]} 3. Qxd4 {[%clk 0:01:44]}  Nc6 {[%clk 0:02:57]} 4. Qe3 {[%clk 0:01:45]}  Nf6 {[%clk 0:02:55]} 5. Nc3 {[%clk 0:01:46]}  Bb4 {[%clk 0:02:54]} 6. Bd2 {[%clk 0:01:46]}  O-O {[%clk 0:02:52]} 7. O-O-O {[%clk 0:01:47]}  Re8 {[%clk 0:02:52]} 8. Bc4 {[%clk 0:01:48]}  Ne5 {[%clk 0:02:41]} 9. Bb3 {[%clk 0:01:47]}  Neg4 {[%clk 0:02:41]} 10. Qg3 {[%clk 0:01:45]}  d5 {[%clk 0:02:07]} 11. exd5 {[%clk 0:01:27]}  Bxc3 {[%clk 0:02:00]} 12. Bxc3 {[%clk 0:01:08]}  Ne4 {[%clk 0:01:56]} 13. Qf3 {[%clk 0:01:03]}  Qg5+ {[%clk 0:01:31]} 14. Kb1 {[%clk 0:00:50]}  Ngxf2 {[%clk 0:01:26]} 15. Nh3 {[%clk 0:00:48]}  Bxh3 {[%clk 0:01:20]} 16. gxh3 {[%clk 0:00:48]}  Nxh1 {[%clk 0:01:16]} 17. d6 {[%clk 0:00:33]}  Nxc3+ {[%clk 0:00:50]} 18. bxc3 {[%clk 0:00:15]}  Qf6 {[%clk 0:00:48]} 19. Qxh1 {[%clk 0:00:10]}  cxd6 {[%clk 0:00:43]} 20. Rf1 {[%clk 0:00:10]}  Qxc3 {[%clk 0:00:38]} 21. Bxf7+ {[%clk 0:00:10]}  Kh8 {[%clk 0:00:38]} 22. Bxe8 {[%clk 0:00:09]}  Qb4+ {[%clk 0:00:33]} 23. Ka1 {[%clk 0:00:05]}  Rxe8 {[%clk 0:00:32]} 24. Qf3 {[%clk 0:00:05]}  h6 {[%clk 0:00:31]} 25. Qf7 {[%clk 0:00:04]}  Qc3+ {[%clk 0:00:27]} 26. Kb1 {[%clk 0:00:05]}  Re5 {[%clk 0:00:25]} 27. Qf8+ {[%clk 0:00:03]}  Kh7 {[%clk 0:00:26]} 28. h4 {[%clk 0:00:03]}  Rb5+ {[%clk 0:00:22]} 29. Kc1 {[%clk 0:00:03]}  Qb2+ {[%clk 0:00:22]} 30. Kd1 {[%clk 0:00:03]}  Rd5+ {[%clk 0:00:22]} 31. Ke2 {[%clk 0:00:04]}  Qxc2+ {[%clk 0:00:20]} 32. Ke3 {[%clk 0:00:05]}  Qd3+ {[%clk 0:00:15]} 33. Kf2 {[%clk 0:00:03]}  Rf5+ {[%clk 0:00:15]} 0-1


[Site "https://www.chess.com"]

[Event "Titled Tuesday Blitz October 31 Early 2023"]
[White "Tsyhanchuk, Stanislav"]
[Black "Mirzanurov, Bulat"]
[WhiteFideId "13505130"]
[BlackFideId "4184521"]
[WhiteElo "2413"]
[BlackElo "2209"]
[Result "0-1"]
[Round "7"]
[TimeControl "180+1"]
[Date "2023.10.31"]
[WhiteClock "0:01:11"]
[BlackClock "0:01:32"]
[Board "124"]

1. d4 {[%clk 0:03:00]}  d5 {[%clk 0:02:59]} 2. c4 {[%clk 0:03:00]}  e6 {[%clk 0:02:58]} 3. Nf3 {[%clk 0:02:59]}  Nf6 {[%clk 0:02:56]} 4. g3 {[%clk 0:02:54]}  dxc4 {[%clk 0:02:56]} 5. Bg2 {[%clk 0:02:52]}  a6 {[%clk 0:02:55]} 6. a4 {[%clk 0:02:49]}  Nc6 {[%clk 0:02:51]} 7. O-O {[%clk 0:02:47]}  Be7 {[%clk 0:02:36]} 8. Nc3 {[%clk 0:02:46]}  Rb8 {[%clk 0:02:26]} 9. e4 {[%clk 0:02:08]}  b5 {[%clk 0:02:22]} 10. d5 {[%clk 0:02:08]}  exd5 {[%clk 0:02:19]} 11. exd5 {[%clk 0:02:09]}  Nb4 {[%clk 0:02:19]} 12. Nd4 {[%clk 0:02:04]}  Bd7 {[%clk 0:01:55]} 13. axb5 {[%clk 0:01:22]}  axb5 {[%clk 0:01:53]} 14. b3 {[%clk 0:01:23]}  O-O {[%clk 0:01:36]} 15. Ra7 {[%clk 0:01:20]}  Bc5 {[%clk 0:01:35]} 16. Ra1 {[%clk 0:01:14]}  Bxd4 {[%clk 0:01:33]} 17. Qxd4 {[%clk 0:01:11]}  Nc2 {[%clk 0:01:32]} 0-1


[Site "https://www.chess.com"]

[Event "Titled Tuesday Blitz October 31 Early 2023"]
[White "Leve, Nitai"]
[Black "Joshi, Pankaj"]
[WhiteFideId "2006898"]
[BlackFideId "5006210"]
[WhiteElo "2409"]
[BlackElo "2191"]
[Result "0-1"]
[Round "7"]
[TimeControl "180+1"]
[Date "2023.10.31"]
[WhiteClock "0:01:12"]
[BlackClock "0:01:55"]
[Board "125"]

1. e4 {[%clk 0:03:00]}  e5 {[%clk 0:02:59]} 2. Nf3 {[%clk 0:02:59]}  Nc6 {[%clk 0:02:59]} 3. d4 {[%clk 0:02:59]}  exd4 {[%clk 0:03:00]} 4. c3 {[%clk 0:02:59]}  d5 {[%clk 0:02:59]} 5. exd5 {[%clk 0:02:59]}  Qxd5 {[%clk 0:03:00]} 6. Be2 {[%clk 0:02:59]}  Nf6 {[%clk 0:02:56]} 7. cxd4 {[%clk 0:02:58]}  Bb4+ {[%clk 0:02:55]} 8. Nc3 {[%clk 0:02:58]}  O-O {[%clk 0:02:55]} 9. O-O {[%clk 0:02:58]}  Qd6 {[%clk 0:02:47]} 10. h3 {[%clk 0:02:50]}  Rd8 {[%clk 0:02:43]} 11. Nb5 {[%clk 0:02:25]}  Qe7 {[%clk 0:02:36]} 12. Bf4 {[%clk 0:02:12]}  Nd5 {[%clk 0:02:33]} 13. Bg3 {[%clk 0:02:10]}  a6 {[%clk 0:02:32]} 14. Bh4 {[%clk 0:02:07]}  f6 {[%clk 0:02:30]} 15. Nc3 {[%clk 0:02:03]}  Be6 {[%clk 0:02:24]} 16. Rc1 {[%clk 0:01:57]}  Bd6 {[%clk 0:02:12]} 17. Re1 {[%clk 0:01:57]}  Qf7 {[%clk 0:02:12]} 18. Ne4 {[%clk 0:01:48]}  Bb4 {[%clk 0:02:02]} 19. Rf1 {[%clk 0:01:40]}  Nf4 {[%clk 0:02:01]} 20. Neg5 {[%clk 0:01:18]}  fxg5 {[%clk 0:01:56]} 21. Nxg5 {[%clk 0:01:19]}  Qg6 {[%clk 0:01:56]} 22. Nxe6 {[%clk 0:01:12]}  Qxg2# {[%clk 0:01:55]} 0-1


[Site "https://www.chess.com"]

[Event "Titled Tuesday Blitz October 31 Early 2023"]
[White "Spichkin, Alexander"]
[Black "Tarnowska, Aleksandra"]
[WhiteFideId "4144074"]
[BlackFideId "1180967"]
[WhiteElo "2396"]
[BlackElo "2162"]
[Result "1-0"]
[Round "7"]
[TimeControl "180+1"]
[Date "2023.10.31"]
[WhiteClock "0:01:46"]
[BlackClock "0:00:00"]
[Board "127"]

1. f4 {[%clk 0:03:00]}  d5 {[%clk 0:02:59]} 2. Nf3 {[%clk 0:03:01]}  Nf6 {[%clk 0:02:57]} 3. e3 {[%clk 0:03:00]}  c6 {[%clk 0:02:44]} 4. b3 {[%clk 0:03:00]}  Bg4 {[%clk 0:02:37]} 5. Bb2 {[%clk 0:02:59]}  Nbd7 {[%clk 0:02:37]} 6. h3 {[%clk 0:02:57]}  Bxf3 {[%clk 0:02:27]} 7. Qxf3 {[%clk 0:02:57]}  Qc7 {[%clk 0:02:25]} 8. g4 {[%clk 0:02:55]}  e5 {[%clk 0:02:15]} 9. g5 {[%clk 0:02:55]}  e4 {[%clk 0:02:05]} 10. Qe2 {[%clk 0:02:53]}  Ng8 {[%clk 0:02:04]} 11. Nc3 {[%clk 0:02:52]}  Ne7 {[%clk 0:02:02]} 12. O-O-O {[%clk 0:02:53]}  Nf5 {[%clk 0:02:01]} 13. h4 {[%clk 0:02:53]}  Ng3 {[%clk 0:02:00]} 14. Qh2 {[%clk 0:02:53]}  Nxh1 {[%clk 0:02:00]} 15. Qxh1 {[%clk 0:02:52]}  Qa5 {[%clk 0:01:55]} 16. Kb1 {[%clk 0:02:52]}  Ba3 {[%clk 0:01:53]} 17. Ba1 {[%clk 0:02:52]}  Nb6 {[%clk 0:01:46]} 18. Ne2 {[%clk 0:02:50]}  Nc4 {[%clk 0:01:32]} 19. Bc3 {[%clk 0:02:36]}  Qb6 {[%clk 0:01:30]} 20. Nd4 {[%clk 0:02:29]}  Bb4 {[%clk 0:01:18]} 21. Bxc4 {[%clk 0:02:29]}  Bxc3 {[%clk 0:00:50]} 22. dxc3 {[%clk 0:02:27]}  dxc4 {[%clk 0:00:14]} 23. Qxe4+ {[%clk 0:02:23]}  Kf8 {[%clk 0:00:15]} 24. Nf5 {[%clk 0:02:22]}  Qc7 {[%clk 0:00:15]} 25. Qd4 {[%clk 0:02:16]}  Rg8 {[%clk 0:00:06]} 26. Qxc4 {[%clk 0:02:16]}  Rd8 {[%clk 0:00:03]} 27. Qc5+ {[%clk 0:02:16]}  Ke8 {[%clk 0:00:04]} 28. Nd6+ {[%clk 0:02:10]}  Rxd6 {[%clk 0:00:04]} 29. Rxd6 {[%clk 0:02:10]}  Qe7 {[%clk 0:00:03]} 30. f5 {[%clk 0:01:54]}  h6 {[%clk 0:00:03]} 31. f6 {[%clk 0:01:51]}  Qe4 {[%clk 0:00:00]} 32. Rd4 {[%clk 0:01:46]} 1-0


[Site "https://www.chess.com"]

[Event "Titled Tuesday Blitz October 31 Early 2023"]
[White "Souza, Gustavo Horokoski De"]
[Black "Kukreja Sankalp"]
[WhiteFideId "2146584"]
[BlackFideId "45027676"]
[WhiteElo "2146"]
[BlackElo "2391"]
[Result "0-1"]
[Round "7"]
[TimeControl "180+1"]
[Date "2023.10.31"]
[WhiteClock "0:00:03"]
[BlackClock "0:00:43"]
[Board "128"]

1. c4 {[%clk 0:02:59]}  e5 {[%clk 0:02:52]} 2. Nc3 {[%clk 0:02:58]}  Nf6 {[%clk 0:02:52]} 3. Nf3 {[%clk 0:02:58]}  Nc6 {[%clk 0:02:53]} 4. e4 {[%clk 0:02:58]}  Bb4 {[%clk 0:02:52]} 5. Nd5 {[%clk 0:02:58]}  Nxe4 {[%clk 0:02:50]} 6. Nxb4 {[%clk 0:02:57]}  Nxb4 {[%clk 0:02:51]} 7. a3 {[%clk 0:01:57]}  Nc6 {[%clk 0:02:46]} 8. Be2 {[%clk 0:01:46]}  d6 {[%clk 0:02:41]} 9. O-O {[%clk 0:01:45]}  O-O {[%clk 0:02:40]} 10. d4 {[%clk 0:01:38]}  exd4 {[%clk 0:02:32]} 11. Nxd4 {[%clk 0:01:33]}  Nxd4 {[%clk 0:02:32]} 12. Qxd4 {[%clk 0:01:34]}  Nc5 {[%clk 0:02:33]} 13. Qc3 {[%clk 0:01:11]}  Re8 {[%clk 0:02:30]} 14. Be3 {[%clk 0:01:06]}  Bf5 {[%clk 0:02:25]} 15. Rfe1 {[%clk 0:01:03]}  Ne4 {[%clk 0:02:21]} 16. Qd4 {[%clk 0:00:57]}  Qf6 {[%clk 0:02:17]} 17. Bf3 {[%clk 0:00:51]}  Qg6 {[%clk 0:01:56]} 18. b4 {[%clk 0:00:44]}  Rad8 {[%clk 0:01:45]} 19. Rad1 {[%clk 0:00:34]}  Ng5 {[%clk 0:01:35]} 20. Bxg5 {[%clk 0:00:30]}  Qxg5 {[%clk 0:01:33]} 21. Bxb7 {[%clk 0:00:29]}  Bg4 {[%clk 0:01:27]} 22. f3 {[%clk 0:00:22]}  Bh3 {[%clk 0:01:19]} 23. f4 {[%clk 0:00:12]}  Qh4 {[%clk 0:01:17]} 24. Rxe8+ {[%clk 0:00:09]}  Rxe8 {[%clk 0:01:17]} 25. Qf2 {[%clk 0:00:07]}  Qxf2+ {[%clk 0:01:11]} 26. Kxf2 {[%clk 0:00:08]}  Be6 {[%clk 0:01:12]} 27. Re1 {[%clk 0:00:07]}  Rb8 {[%clk 0:01:09]} 28. Bd5 {[%clk 0:00:04]}  Bxd5 {[%clk 0:01:10]} 29. cxd5 {[%clk 0:00:05]}  Kf8 {[%clk 0:01:11]} 30. Re3 {[%clk 0:00:05]}  Rb5 {[%clk 0:01:08]} 31. Rd3 {[%clk 0:00:05]}  a5 {[%clk 0:01:09]} 32. bxa5 {[%clk 0:00:04]}  Rxa5 {[%clk 0:01:09]} 33. Ke3 {[%clk 0:00:05]}  Ra4 {[%clk 0:01:10]} 34. Rc3 {[%clk 0:00:04]}  g6 {[%clk 0:01:07]} 35. Rxc7 {[%clk 0:00:03]}  Rxa3+ {[%clk 0:01:05]} 36. Ke4 {[%clk 0:00:03]}  Ra4+ {[%clk 0:01:04]} 37. Ke3 {[%clk 0:00:03]}  Kg7 {[%clk 0:01:05]} 38. Rc6 {[%clk 0:00:03]}  Ra3+ {[%clk 0:01:04]} 39. Ke4 {[%clk 0:00:03]}  Ra4+ {[%clk 0:01:05]} 40. Ke3 {[%clk 0:00:03]}  Ra3+ {[%clk 0:01:05]} 41. Ke4 {[%clk 0:00:04]}  Ra2 {[%clk 0:00:55]} 42. Kf3 {[%clk 0:00:04]}  Rd2 {[%clk 0:00:49]} 43. Rxd6 {[%clk 0:00:04]}  Kf8 {[%clk 0:00:49]} 44. Rd8+ {[%clk 0:00:04]}  Ke7 {[%clk 0:00:50]} 45. Rh8 {[%clk 0:00:04]}  h5 {[%clk 0:00:50]} 46. Rh7 {[%clk 0:00:03]}  Rxd5 {[%clk 0:00:49]} 47. h3 {[%clk 0:00:04]}  Rd3+ {[%clk 0:00:48]} 48. Kf2 {[%clk 0:00:04]}  Kf6 {[%clk 0:00:48]} 49. Rh8 {[%clk 0:00:04]}  Kf5 {[%clk 0:00:47]} 50. g3 {[%clk 0:00:05]}  f6 {[%clk 0:00:45]} 51. Ra8 {[%clk 0:00:04]}  h4 {[%clk 0:00:40]} 52. Ra5+ {[%clk 0:00:04]}  Ke4 {[%clk 0:00:40]} 53. Ra4+ {[%clk 0:00:03]}  Rd4 {[%clk 0:00:40]} 54. Rxd4+ {[%clk 0:00:02]}  Kxd4 {[%clk 0:00:41]} 55. gxh4 {[%clk 0:00:03]}  Ke4 {[%clk 0:00:41]} 56. Kg3 {[%clk 0:00:03]}  f5 {[%clk 0:00:42]} 57. h5 {[%clk 0:00:02]}  gxh5 {[%clk 0:00:42]} 58. Kh4 {[%clk 0:00:02]}  Kxf4 {[%clk 0:00:43]} 59. Kxh5 {[%clk 0:00:03]}  Kg3 {[%clk 0:00:43]} 60. h4 {[%clk 0:00:03]}  f4 {[%clk 0:00:44]} 61. Kg5 {[%clk 0:00:03]}  f3 {[%clk 0:00:44]} 62. h5 {[%clk 0:00:04]}  f2 {[%clk 0:00:45]} 63. h6 {[%clk 0:00:05]}  f1=Q {[%clk 0:00:45]} 64. Kg6 {[%clk 0:00:05]}  Qf8 {[%clk 0:00:45]} 65. Kh7 {[%clk 0:00:04]}  Kg4 {[%clk 0:00:43]} 66. Kg6 {[%clk 0:00:03]}  Qh8 {[%clk 0:00:43]} 0-1


[Site "https://www.chess.com"]

[Event "Titled Tuesday Blitz October 31 Early 2023"]
[White "Hoffmann, Asa"]
[Black "Guevara Sanchez, Erick Marvin"]
[WhiteFideId "2001470"]
[BlackFideId "6700136"]
[WhiteElo "2390"]
[BlackElo "2138"]
[Result "1-0"]
[Round "7"]
[TimeControl "180+1"]
[Date "2023.10.31"]
[WhiteClock "0:01:04"]
[BlackClock "0:00:27"]
[Board "129"]

1. d4 {[%clk 0:02:56]}  Nf6 {[%clk 0:02:59]} 2. Bg5 {[%clk 0:02:55]}  Ne4 {[%clk 0:02:57]} 3. Bf4 {[%clk 0:02:55]}  d5 {[%clk 0:02:57]} 4. f3 {[%clk 0:02:55]}  Nf6 {[%clk 0:02:54]} 5. e4 {[%clk 0:02:55]}  dxe4 {[%clk 0:02:54]} 6. Nc3 {[%clk 0:02:54]}  e6 {[%clk 0:02:50]} 7. fxe4 {[%clk 0:02:54]}  Bb4 {[%clk 0:02:50]} 8. e5 {[%clk 0:02:52]}  Nd5 {[%clk 0:02:49]} 9. Bd2 {[%clk 0:02:52]}  Qh4+ {[%clk 0:02:49]} 10. g3 {[%clk 0:02:45]}  Qxd4 {[%clk 0:02:39]} 11. Nf3 {[%clk 0:02:45]}  Qc5 {[%clk 0:02:37]} 12. Ne4 {[%clk 0:02:21]}  Qe3+ {[%clk 0:02:13]} 13. Qe2 {[%clk 0:02:20]}  Bxd2+ {[%clk 0:02:12]} 14. Nfxd2 {[%clk 0:02:05]}  Nc6 {[%clk 0:02:05]} 15. Nc4 {[%clk 0:01:55]}  Qd4 {[%clk 0:01:55]} 16. Rd1 {[%clk 0:01:51]}  Qxd1+ {[%clk 0:01:20]} 17. Qxd1 {[%clk 0:01:44]}  b5 {[%clk 0:01:18]} 18. Ncd2 {[%clk 0:01:37]}  Nd4 {[%clk 0:01:14]} 19. Bg2 {[%clk 0:01:24]}  Ne3 {[%clk 0:01:13]} 20. Qc1 {[%clk 0:01:17]}  Nexc2+ {[%clk 0:00:45]} 21. Kf2 {[%clk 0:01:16]}  Nb4 {[%clk 0:00:45]} 22. Qc3 {[%clk 0:01:07]}  Nbc6 {[%clk 0:00:34]} 23. Nf6+ {[%clk 0:01:05]}  gxf6 {[%clk 0:00:32]} 24. Bxc6+ {[%clk 0:01:05]}  Nxc6 {[%clk 0:00:31]} 25. Qxc6+ {[%clk 0:01:04]}  Ke7 {[%clk 0:00:27]} 26. Qxa8 {[%clk 0:01:04]} 1-0


[Site "https://www.chess.com"]

[Event "Titled Tuesday Blitz October 31 Early 2023"]
[White "Todorovic, Bojan"]
[Black "Smirnov, Timofey"]
[WhiteFideId "917087"]
[BlackFideId "24176427"]
[WhiteElo "2415"]
[BlackElo "2302"]
[Result "1-0"]
[Round "7"]
[TimeControl "180+1"]
[Date "2023.10.31"]
[WhiteClock "0:01:05"]
[BlackClock "0:00:00"]
[Board "134"]

1. Nf3 {[%clk 0:02:57]}  d5 {[%clk 0:02:56]} 2. g3 {[%clk 0:02:57]}  Bf5 {[%clk 0:02:53]} 3. Bg2 {[%clk 0:02:54]}  e6 {[%clk 0:02:53]} 4. d3 {[%clk 0:02:54]}  Nf6 {[%clk 0:02:51]} 5. O-O {[%clk 0:02:53]}  Be7 {[%clk 0:02:50]} 6. Nbd2 {[%clk 0:02:52]}  h6 {[%clk 0:02:49]} 7. Qe1 {[%clk 0:02:44]}  O-O {[%clk 0:02:48]} 8. e4 {[%clk 0:02:43]}  dxe4 {[%clk 0:02:49]} 9. dxe4 {[%clk 0:02:40]}  Bh7 {[%clk 0:02:45]} 10. Qe2 {[%clk 0:02:31]}  c6 {[%clk 0:02:41]} 11. Rd1 {[%clk 0:02:22]}  Qc7 {[%clk 0:02:40]} 12. Ne1 {[%clk 0:02:22]}  Nbd7 {[%clk 0:02:35]} 13. a4 {[%clk 0:02:17]}  a5 {[%clk 0:02:35]} 14. Nc4 {[%clk 0:02:13]}  Rfd8 {[%clk 0:02:12]} 15. Nd3 {[%clk 0:02:01]}  Nc5 {[%clk 0:02:04]} 16. Bf4 {[%clk 0:01:58]}  Bd6 {[%clk 0:01:18]} 17. Nxd6 {[%clk 0:01:50]}  Nxd3 {[%clk 0:01:12]} 18. Rxd3 {[%clk 0:01:45]}  Qb6 {[%clk 0:01:06]} 19. b3 {[%clk 0:01:30]}  Ne8 {[%clk 0:00:49]} 20. Nxe8 {[%clk 0:01:26]}  Rxe8 {[%clk 0:00:49]} 21. Rad1 {[%clk 0:01:22]}  Rad8 {[%clk 0:00:47]} 22. Rxd8 {[%clk 0:01:19]}  Rxd8 {[%clk 0:00:48]} 23. Rxd8+ {[%clk 0:01:19]}  Qxd8 {[%clk 0:00:49]} 24. Qd3 {[%clk 0:01:17]}  Qe7 {[%clk 0:00:46]} 25. Qd6 {[%clk 0:01:13]}  Qe8 {[%clk 0:00:35]} 26. Qc7 {[%clk 0:01:12]}  Qa8 {[%clk 0:00:34]} 27. Qb8+ {[%clk 0:01:07]}  Qxb8 {[%clk 0:00:34]} 28. Bxb8 {[%clk 0:01:07]}  Kf8 {[%clk 0:00:00]} 29. Bc7 {[%clk 0:01:05]} 1-0


[Site "https://www.chess.com"]

[Event "Titled Tuesday Blitz October 31 Early 2023"]
[White "Juicy_Fork"]
[Black "Shapiro, Daniel"]
[BlackFideId "2001780"]
[WhiteElo "2412"]
[BlackElo "2299"]
[Result "0-1"]
[Round "7"]
[TimeControl "180+1"]
[Date "2023.10.31"]
[WhiteClock "0:02:09"]
[BlackClock "0:02:13"]
[Board "135"]

1. e4 {[%clk 0:03:00]}  c5 {[%clk 0:02:59]} 2. Nf3 {[%clk 0:03:00]}  Nc6 {[%clk 0:02:59]} 3. Bb5 {[%clk 0:02:58]}  d6 {[%clk 0:02:59]} 4. O-O {[%clk 0:02:57]}  Bd7 {[%clk 0:02:58]} 5. Re1 {[%clk 0:02:57]}  e6 {[%clk 0:02:54]} 6. c3 {[%clk 0:02:57]}  g5 {[%clk 0:02:53]} 7. h3 {[%clk 0:02:48]}  h5 {[%clk 0:02:52]} 8. Nh2 {[%clk 0:02:29]}  g4 {[%clk 0:02:52]} 9. hxg4 {[%clk 0:02:26]}  hxg4 {[%clk 0:02:44]} 10. Qxg4 {[%clk 0:02:26]}  Nf6 {[%clk 0:02:34]} 11. Qf3 {[%clk 0:02:22]}  Ne5 {[%clk 0:02:18]} 12. Qg3 {[%clk 0:02:09]}  Bxb5 {[%clk 0:02:13]} 0-1


[Site "https://www.chess.com"]